bitfinex-derivatives/quotes_BTCF0:USTF0_20250327
["timestamp","ask_amount","ask_price","bid_price","bid_amount"]
[1743096518608,8e-05,86979.0,86978.0,0.1149922]
[1743096518808,0.1150709,86979.0,86978.0,0.1149922]
[1743096519005,0.11679091,86979.0,86978.0,0.1149922]
[1743096519195,0.00180001,86979.0,86978.0,0.1149922]
[1743096519400,0.1149909,86979.0,86978.0,0.1149922]
[1743096519601,0.11663091,86979.0,86978.0,0.1149922]
[1743096519901,0.11663091,86979.0,86978.0,0.1179922]
[1743096520098,0.11663091,86979.0,86978.0,0.1199922]
[1743096526110,0.00164001,86979.0,86978.0,0.1199922]
[1743096526703,8e-05,86981.0,86980.0,0.1149896]
[1743096527209,0.11670831,86981.0,86980.0,0.1149896]
[1743096527915,0.11670831,86981.0,86980.0,0.1179896]
[1743096528608,0.11670831,86981.0,86980.0,0.1199896]
[1743096534413,0.11670831,86981.0,86980.0,0.005]
[1743096540116,0.17261861,86981.0,86980.0,0.005]
[1743096542322,0.17261861,86981.0,86969.0,0.00025241]
[1743096542323,0.1150028,86970.0,86969.0,0.00025241]
[1743096542618,0.1150094,86965.0,86964.0,1e-08]
[1743096542818,0.1150094,86965.0,86951.0,0.34396414]
[1743096542819,0.1150174,86959.0,86951.0,0.34396414]
[1743096543119,0.1150174,86959.0,86957.0,0.27485655]
[1743096543120,0.1150187,86958.0,86957.0,0.27485655]
[1743096543314,0.1166987,86958.0,86957.0,0.27485655]
[1743096543719,0.23168814,86958.0,86957.0,0.27485655]
[1743096544038,0.115028,86951.0,86950.0,0.34396414]
[1743096544210,0.47746801,86951.0,86950.0,0.34396414]
[1743096547818,0.1150293,86950.0,86949.0,0.00011502]
[1743096548020,0.2282293,86950.0,86949.0,0.00011502]
[1743096549429,0.2282293,86950.0,86949.0,0.00111502]
[1743096551218,0.2282293,86950.0,86949.0,0.05911502]
[1743096552321,0.2809293,86950.0,86949.0,0.05911502]
[1743096552922,0.0575178,86946.0,86939.0,8e-05]
[1743096553119,0.1150504,86934.0,86933.0,0.0558]
[1743096553422,0.22845041,86934.0,86933.0,0.0558]
[1743096553617,0.23921518,86934.0,86933.0,0.0558]
[1743096553813,0.23921518,86934.0,86933.0,0.0569199]
[1743096556230,0.24121518,86934.0,86933.0,0.0569199]
[1743096556528,0.24121518,86934.0,86933.0,0.1127199]
[1743096556726,0.23921518,86934.0,86933.0,0.1127199]
[1743096557029,0.24021518,86934.0,86933.0,0.2277717]
[1743096557219,0.12853518,86934.0,86933.0,0.2277717]
[1743096557420,0.24013518,86934.0,86933.0,0.2277717]
[1743096557827,0.60093518,86934.0,86933.0,0.1127199]
[1743096558022,0.71673518,86934.0,86933.0,0.1127199]
[1743096558425,0.71673518,86934.0,86933.0,0.1116]
[1743096558928,0.71673518,86934.0,86933.0,0.1127199]
[1743096560029,0.71573518,86934.0,86933.0,0.1127199]
[1743096562231,0.1150597,86927.0,86926.0,0.0538]
[1743096562435,0.47749971,86927.0,86926.0,0.0538]
[1743096562628,0.36244001,86927.0,86908.0,0.0575423]
[1743096562830,0.1150835,86909.0,86908.0,0.1726221]
[1743096563232,0.11672351,86909.0,86908.0,0.1726221]
[1743096563427,0.11672351,86909.0,86908.0,0.2301632]
[1743096563627,0.00164001,86909.0,86908.0,0.2301632]
[1743096563936,0.1726176,86914.0,86913.0,0.1150782]
[1743096564131,0.17425761,86914.0,86913.0,0.1150782]
[1743096564827,0.17425761,86914.0,86913.0,0.4758782]
[1743096565328,0.17425761,86914.0,86913.0,0.5852782]
[1743096565734,0.17425761,86914.0,86913.0,0.2779782]
[1743096566034,0.17425761,86914.0,86913.0,0.1629]
[1743096566224,0.17425761,86914.0,86913.0,0.2779782]
[1743096567136,0.53605761,86914.0,86913.0,0.2779782]
[1743096567325,0.54681999,86914.0,86913.0,0.2779782]
[1743096567930,0.54781999,86914.0,86913.0,0.2779782]
[1743096568133,0.53705761,86914.0,86913.0,0.2779782]
[1743096568735,0.53605761,86914.0,86913.0,0.2779782]
[1743096569037,0.54633395,86914.0,86913.0,0.2779782]
[1743096571430,0.53605761,86914.0,86913.0,0.2779782]
[1743096572540,0.54669274,86914.0,86913.0,0.2779782]
[1743096572937,0.54669274,86914.0,86913.0,0.1073]
[1743096573234,0.54669274,86914.0,86913.0,0.0535]
[1743096573738,0.1150822,86910.0,86909.0,0.2258829]
[1743096573934,0.22824221,86910.0,86909.0,0.2258829]
[1743096574132,0.33864221,86910.0,86909.0,0.1150829]
[1743096575343,0.33860221,86910.0,86909.0,0.1150829]
[1743096575639,0.33960221,86910.0,86909.0,0.2258829]
[1743096576244,0.34060221,86910.0,86909.0,0.2258829]
[1743096578736,0.34060221,86910.0,86909.0,0.1108]
[1743096578934,0.34060221,86910.0,86905.0,0.36088]
[1743096578935,0.1726306,86908.0,86907.0,0.1696849]
[1743096579240,0.1726326,86906.0,86905.0,0.0575444]
[1743096579439,0.17427261,86906.0,86905.0,0.1121444]
[1743096579633,0.17427261,86906.0,86905.0,0.0575444]
[1743096579835,0.1150928,86902.0,86901.0,8e-05]
[1743096580029,0.11673281,86902.0,86901.0,8e-05]
[1743096580243,0.22723281,86902.0,86901.0,0.1150941]
[1743096580631,0.23583922,86902.0,86901.0,0.1150941]
[1743096581445,0.23583922,86902.0,86901.0,0.1696941]
[1743096581834,0.23683922,86902.0,86901.0,0.1696941]
[1743096582539,0.23783922,86902.0,86901.0,0.1696941]
[1743096583344,0.23783922,86902.0,86901.0,0.1150941]
[1743096583638,0.1150941,86901.0,86900.0,0.2150955]
[1743096583837,0.2850941,86901.0,86900.0,0.2150955]
[1743096584043,0.3977941,86901.0,86900.0,0.2150955]
[1743096584436,0.3977941,86901.0,86894.0,0.1713117]
[1743096584437,0.0575488,86899.0,86892.0,0.1151056]
[1743096584634,0.1151047,86893.0,86892.0,0.1726579]
[1743096584848,0.11674471,86893.0,86892.0,0.1726579]
[1743096585143,0.22604471,86893.0,86892.0,0.1726579]
[1743096590748,0.22604471,86893.0,86892.0,0.2296579]
[1743096594054,0.11094001,86893.0,86892.0,0.2296579]
[1743096594758,0.22604471,86893.0,86892.0,0.2296579]
[1743096594959,0.22604471,86893.0,86892.0,0.1145523]
[1743096595648,0.22604471,86893.0,86892.0,0.0575523]
[1743096596650,0.22604471,86893.0,86892.0,0.1112523]
[1743096597159,0.22604471,86893.0,86892.0,0.1692523]
[1743096598759,0.11094001,86893.0,86892.0,0.1692523]
[1743096599553,0.22604471,86893.0,86892.0,0.1692523]
[1743096600453,0.11511,86889.0,86888.0,0.0576351]
[1743096600758,0.11511,86889.0,86888.0,0.0575551]
[1743096600759,0.11675001,86889.0,86888.0,0.0575551]
[1743096600957,0.23075001,86889.0,86888.0,0.0575551]
[1743096601155,0.1151114,86888.0,86887.0,0.0575563]
[1743096601356,0.115118,86883.0,86882.0,0.0575594]
[1743096601553,0.11675801,86883.0,86882.0,0.0575594]
[1743096601854,0.28675801,86883.0,86882.0,0.1119594]
[1743096602046,0.23075801,86883.0,86882.0,0.1672594]
[1743096602249,0.11564001,86883.0,86882.0,0.1672594]
[1743096603053,0.23075801,86883.0,86882.0,0.1672594]
[1743096603251,0.11564001,86883.0,86882.0,0.1672594]
[1743096603862,0.23075801,86883.0,86882.0,0.1672594]
[1743096604570,0.00264001,86883.0,86882.0,0.1672594]
[1743096604756,0.0566,86890.0,86889.0,0.11511]
[1743096604952,0.0583,86896.0,86895.0,0.1151021]
[1743096605258,0.11658,86896.0,86895.0,0.1151021]
[1743096605853,0.11658,86896.0,86891.0,0.0575532]
[1743096605854,0.1151087,86892.0,86891.0,0.0575532]
[1743096606055,0.11674871,86892.0,86891.0,0.0575532]
[1743096606454,0.22764871,86892.0,86891.0,0.0575532]
[1743096607259,0.28520241,86892.0,86891.0,0.1726606]
[1743096607956,0.28520241,86892.0,86891.0,0.1736606]
[1743096608663,0.39708241,86892.0,86891.0,0.001]
[1743096610253,0.39708241,86892.0,86891.0,0.1161074]
[1743096610649,0.11254001,86892.0,86891.0,0.1161074]
[1743096610851,0.1109,86892.0,86891.0,0.1161074]
[1743096612067,0.1026288,86899.0,86898.0,0.1150981]
[1743096612258,0.00172001,86899.0,86898.0,0.1150981]
[1743096613467,0.00172001,86899.0,86898.0,0.1160981]
[1743096614867,0.11681681,86899.0,86898.0,0.1160981]
[1743096615361,0.22491681,86899.0,86898.0,0.1741981]
[1743096616454,0.22491681,86899.0,86898.0,0.1160981]
[1743096617364,0.10982001,86899.0,86898.0,0.1160981]
[1743096617863,0.1081,86899.0,86898.0,0.1701981]
[1743096618070,0.10974001,86899.0,86898.0,0.1701981]
[1743096619079,0.1081,86899.0,86898.0,0.1701981]
[1743096619277,0.10978,86899.0,86898.0,0.1701981]
[1743096619769,0.2248768,86899.0,86898.0,0.1160981]
[1743096619970,0.2827768,86899.0,86898.0,0.1160981]
[1743096622867,0.16768,86899.0,86898.0,0.1160981]
[1743096623070,0.10978,86899.0,86898.0,0.1697981]
[1743096623271,0.10978,86899.0,86898.0,0.2236981]
[1743096623969,0.2248768,86899.0,86898.0,0.2236981]
[1743096624170,0.10978,86899.0,86898.0,0.2236981]
[1743096625261,0.05638,86899.0,86898.0,0.2236981]
[1743096625561,0.17149548,86914.0,86908.0,0.1150849]
[1743096625766,0.17269549,86914.0,86913.0,0.4758782]
[1743096625963,0.17269549,86914.0,86913.0,0.4765182]
[1743096625964,0.28777239,86914.0,86913.0,0.4765182]
[1743096626384,0.34427239,86914.0,86913.0,0.4765182]
[1743096626568,0.34427239,86914.0,86913.0,0.5927182]
[1743096626773,0.17277691,86914.0,86913.0,0.5927182]
[1743096626966,0.17377691,86914.0,86913.0,0.5927182]
[1743096627271,0.17677691,86914.0,86913.0,0.5927182]
[1743096627678,0.17777691,86914.0,86913.0,0.5927182]
[1743096628269,0.17477691,86914.0,86913.0,0.5927182]
[1743096628577,0.17277691,86914.0,86913.0,0.5937182]
[1743096628776,0.28547691,86914.0,86913.0,0.5937182]
[1743096629979,0.28547691,86914.0,86913.0,0.5927182]
[1743096630179,0.28547691,86914.0,86913.0,0.5937182]
[1743096631076,0.11390001,86914.0,86913.0,0.5937182]
[1743096631375,0.11523941,86922.0,86921.0,0.1150677]
[1743096631579,0.11639941,86922.0,86921.0,0.1156677]
[1743096631779,0.11639941,86922.0,86921.0,0.1690677]
[1743096632889,0.22759941,86922.0,86921.0,0.0006]
[1743096633072,0.1726108,86918.0,86917.0,0.057536]
[1743096633273,0.17381081,86918.0,86917.0,0.058176]
[1743096633980,0.17381081,86918.0,86917.0,0.111576]
[1743096634368,0.17381081,86918.0,86917.0,0.226649]
[1743096634985,0.17381081,86918.0,86917.0,0.227649]
[1743096637193,0.17381081,86918.0,86917.0,0.226649]
[1743096637483,0.17381081,86918.0,86917.0,0.227649]
[1743096639083,0.00120001,86918.0,86917.0,0.227649]
[1743096639889,0.05520001,86918.0,86917.0,0.227649]
[1743096640089,0.17027161,86918.0,86917.0,0.227649]
[1743096640587,0.17027161,86918.0,86917.0,0.174249]
[1743096640588,0.22727161,86918.0,86917.0,0.174249]
[1743096642684,0.11220001,86918.0,86917.0,0.174249]
[1743096642887,0.00017261,86922.0,86917.0,0.059176]
[1743096643081,0.00105261,86922.0,86921.0,0.1150677]
[1743096643288,0.00105261,86922.0,86921.0,0.1157077]
[1743096643598,0.00105261,86922.0,86921.0,0.1691077]
[1743096644291,0.00105261,86922.0,86921.0,0.2235077]
[1743096644687,0.11235261,86922.0,86921.0,0.1691077]
[1743096645191,0.22741891,86922.0,86921.0,0.1691077]
[1743096645492,0.22741891,86922.0,86921.0,0.1157077]
[1743096645689,0.22741891,86922.0,86921.0,0.00064]
[1743096645892,0.1726108,86918.0,86917.0,0.1150722]
[1743096646094,0.1734108,86918.0,86917.0,0.1156722]
[1743096646990,0.1734108,86918.0,86917.0,0.1742722]
[1743096647493,0.1734108,86918.0,86917.0,0.1752722]
[1743096649691,0.0583365,86918.0,86917.0,0.2344722]
[1743096649895,0.0575365,86918.0,86917.0,0.2344722]
[1743096650096,0.0583765,86918.0,86917.0,0.2344722]
[1743096650286,0.2290765,86918.0,86917.0,0.2344722]
[1743096651383,0.2290765,86918.0,86917.0,0.2334722]
[1743096651597,0.2290765,86918.0,86917.0,0.2344722]
[1743096652986,0.2290765,86918.0,86917.0,0.1752722]
[1743096653602,0.17154,86918.0,86917.0,0.2307722]
[1743096654097,0.2866116,86918.0,86917.0,0.2307722]
[1743096655284,0.2866116,86918.0,86917.0,0.1752722]
[1743096655697,0.2866116,86918.0,86917.0,0.2326722]
[1743096655898,0.17154,86918.0,86917.0,0.2326722]
[1743096656099,0.2866116,86918.0,86917.0,0.2326722]
[1743096656605,0.05794,86918.0,86917.0,0.2326722]
[1743096656894,0.0571,86918.0,86917.0,0.2326722]
[1743096657100,0.0579,86918.0,86917.0,0.2326722]
[1743096658195,0.00017261,86922.0,86921.0,0.1150677]
[1743096658396,0.00097261,86922.0,86921.0,0.5881077]
[1743096658698,0.11603891,86922.0,86921.0,0.5881077]
[1743096659297,0.17223891,86922.0,86921.0,0.1701077]
[1743096659499,0.22913891,86922.0,86921.0,0.00064]
[1743096659807,0.057536,86919.0,86918.0,0.1150709]
[1743096659994,0.058416,86919.0,86918.0,0.1156709]
[1743096660599,0.2310288,86919.0,86918.0,0.1156709]
[1743096660794,0.2310288,86919.0,86918.0,0.1699709]
[1743096661304,0.2310288,86919.0,86918.0,0.1156716]
[1743096662704,0.2310288,86919.0,86918.0,0.1166716]
[1743096663090,0.2310288,86919.0,86917.0,0.1151522]
[1743096663091,0.1159532,86919.0,86917.0,8e-05]
[1743096663302,0.3958516,86918.0,86917.0,0.0006]
[1743096663507,0.0575365,86917.0,86908.0,8e-05]
[1743096663805,0.4758835,86909.0,86908.0,0.00068]
[1743096664005,0.47684351,86909.0,86908.0,0.00068]
[1743096664206,0.59034351,86909.0,86908.0,0.0006]
[1743096664703,0.59034351,86909.0,86903.0,0.0575457]
[1743096664704,0.1150955,86900.0,86891.0,0.38171773]
[1743096664904,0.1150955,86900.0,86899.0,0.34456414]
[1743096664905,0.5906955,86900.0,86899.0,0.34456414]
[1743096665605,0.7069955,86900.0,86899.0,0.34456414]
[1743096667299,0.1151021,86895.0,86894.0,0.41140033]
[1743096667501,0.12730579,86895.0,86894.0,0.41200033]
[1743096667805,0.27730579,86895.0,86883.0,0.47978134]
[1743096668003,0.4759167,86884.0,86883.0,8e-05]
[1743096668201,0.1726881,86879.0,86878.0,0.1151236]
[1743096668402,0.17424811,86879.0,86878.0,0.1152036]
[1743096668605,0.28714811,86879.0,86878.0,0.1152036]
[1743096669108,0.28714811,86879.0,86878.0,8e-05]
[1743096669411,0.40225138,86879.0,86878.0,8e-05]
[1743096669601,0.4110308,86879.0,86878.0,8e-05]
[1743096669805,0.1151259,86877.0,86876.0,0.1151262]
[1743096670002,0.4774459,86877.0,86876.0,0.2302526]
[1743096670206,0.00152,86877.0,86876.0,0.2841526]
[1743096670511,0.1166459,86877.0,86876.0,0.2841526]
[1743096670707,0.12737405,86877.0,86876.0,0.2841526]
[1743096672307,0.1166459,86877.0,86876.0,0.2841526]
[1743096673204,0.2337459,86877.0,86876.0,0.2841526]
[1743096673806,0.5945459,86877.0,86876.0,0.0539]
[1743096674007,0.1151273,86876.0,86875.0,0.1719281]
[1743096674311,0.1167273,86876.0,86875.0,0.1719286]
[1743096674504,0.2297273,86876.0,86875.0,0.1719286]
[1743096674710,0.2297273,86876.0,86875.0,0.0568]
[1743096674914,0.1151299,86874.0,86873.0,0.1151307]
[1743096675110,0.2303299,86874.0,86873.0,0.1740307]
[1743096675416,0.2303299,86874.0,86873.0,0.2300307]
[1743096676715,0.00152,86874.0,86873.0,0.2300307]
[1743096676916,0.1151206,86882.0,86873.0,0.1149]
[1743096677116,0.1166406,86882.0,86881.0,0.115118]
[1743096677316,0.1276281,86882.0,86881.0,0.115118]
[1743096677617,0.1166393,86882.0,86881.0,0.115118]
[1743096678121,0.1166393,86882.0,86881.0,0.230018]
[1743096679916,0.1718393,86882.0,86881.0,0.0553]
[1743096680119,0.2272393,86882.0,86881.0,0.0553]
[1743096681426,0.2272393,86882.0,86881.0,0.1704206]
[1743096681814,0.2272393,86882.0,86881.0,0.1153]
[1743096682023,0.2272393,86882.0,86881.0,0.0553]
[1743096682518,0.1151233,86879.0,86878.0,8e-05]
[1743096682720,0.1167233,86879.0,86878.0,0.05908]
[1743096682919,0.2348233,86879.0,86878.0,0.05908]
[1743096685024,0.3484633,86879.0,86878.0,0.05908]
[1743096685229,0.3484633,86879.0,86878.0,0.059]
[1743096686831,0.1151299,86874.0,86873.0,0.0566]
[1743096687133,0.11668991,86874.0,86873.0,0.0566]
[1743096687332,0.23128991,86874.0,86873.0,0.0566]
[1743096689935,0.23128991,86874.0,86873.0,0.1124]
[1743096690433,0.23128991,86874.0,86873.0,0.2275312]
[1743096690935,0.23128991,86874.0,86873.0,0.1124]
[1743096692033,0.23128991,86874.0,86873.0,0.2275312]
[1743096692433,0.23128991,86874.0,86873.0,0.1124]
[1743096692638,0.30957703,86874.0,86873.0,0.1124]
[1743096693138,0.36837703,86874.0,86873.0,0.2275312]
[1743096694630,0.36837703,86874.0,86873.0,0.1124]
[1743096695033,0.36837703,86874.0,86873.0,0.2275312]
[1743096695435,0.28786383,86874.0,86873.0,0.2275312]
[1743096696237,0.28786383,86874.0,86873.0,0.1124]
[1743096697042,0.34646383,86874.0,86873.0,0.1124]
[1743096698338,0.34646383,86874.0,86873.0,0.2275312]
[1743096699349,0.05753393,86874.0,86873.0,0.2275312]
[1743096699548,0.23855318,86882.0,86881.0,0.1151206]
[1743096699738,0.24007318,86882.0,86881.0,0.48670344]
[1743096699943,0.24007318,86882.0,86881.0,0.6534206]
[1743096700143,0.24007318,86882.0,86881.0,0.7673806]
[1743096700448,0.24007318,86882.0,86881.0,0.6534206]
[1743096703351,0.00152,86882.0,86881.0,0.6534206]
[1743096704434,0.00017261,86885.0,86884.0,0.1151167]
[1743096704639,0.11680791,86885.0,86884.0,0.2268167]
[1743096704848,0.00169261,86885.0,86884.0,0.2268167]
[1743096705848,0.00017261,86885.0,86884.0,0.2268167]
[1743096707240,1e-08,86885.0,86884.0,0.5876167]
[1743096707443,0.1715001,86893.0,86892.0,0.1151061]
[1743096707747,0.1731001,86893.0,86892.0,0.5900661]
[1743096707946,0.1731001,86893.0,86892.0,0.7649661]
[1743096708652,0.1751001,86893.0,86892.0,0.7649661]
[1743096708946,0.1771001,86893.0,86892.0,0.7649661]
[1743096709353,0.1751001,86893.0,86892.0,0.7649661]
[1743096710351,0.1731001,86893.0,86892.0,0.7649661]
[1743096711147,0.0016,86893.0,86892.0,0.7649661]
[1743096711348,0.0016,86893.0,86892.0,0.77610471]
[1743096711552,0.1714992,86898.0,86897.0,0.1150994]
[1743096711753,0.2303992,86898.0,86897.0,0.1150994]
[1743096711941,0.2851992,86898.0,86897.0,0.1150994]
[1743096712457,0.2851992,86898.0,86897.0,0.1724994]
[1743096713455,0.1153,86898.0,86897.0,0.1724994]
[1743096713645,0.1137,86898.0,86897.0,0.2322994]
[1743096713841,0.11522,86898.0,86897.0,0.2322994]
[1743096714151,0.11722,86898.0,86897.0,0.2322994]
[1743096714453,0.00452,86898.0,86897.0,0.2322994]
[1743096714754,0.003,86898.0,86897.0,0.2322994]
[1743096714955,0.0046,86898.0,86897.0,0.2322994]
[1743096715155,0.003,86898.0,86897.0,0.2322994]
[1743096715847,0.00452,86898.0,86897.0,0.2322994]
[1743096716661,0.003,86898.0,86897.0,0.2322994]
[1743096717048,0.003,86898.0,86897.0,0.3462594]
[1743096718357,0.0575333,86922.0,86908.0,0.0575418]
[1743096718559,0.05892,86912.0,86911.0,0.1150809]
[1743096718746,0.05892,86912.0,86911.0,0.53897469]
[1743096720154,0.05892,86912.0,86911.0,0.54970061]
[1743096720858,0.00152,86912.0,86911.0,0.54970061]
[1743096721059,0.1192,86914.0,86913.0,0.1150782]
[1743096721260,0.1208,86914.0,86913.0,0.1150782]
[1743096721455,0.1208,86914.0,86913.0,0.1721782]
[1743096722158,0.1258,86914.0,86913.0,0.1721782]
[1743096723248,0.1308,86914.0,86913.0,0.1721782]
[1743096724148,0.1292,86914.0,86913.0,0.2858182]
[1743096724553,0.2457969,86914.0,86913.0,0.2287182]
[1743096724758,0.13072,86914.0,86913.0,0.1150782]
[1743096725958,0.1292,86914.0,86913.0,0.1743782]
[1743096726846,0.01,86914.0,86913.0,0.1743782]
[1743096728564,0.01,86914.0,86913.0,0.2880582]
[1743096729160,0.01,86914.0,86913.0,0.2287582]
[1743096729358,0.01,86914.0,86913.0,0.1150782]
[1743096729558,0.0575391,86913.0,86911.0,0.00867379]
[1743096729759,0.2901996,86913.0,86912.0,0.1150796]
[1743096730067,0.34777871,86913.0,86912.0,0.1150796]
[1743096730968,0.3585226,86913.0,86912.0,0.1150796]
[1743096731160,0.35677871,86913.0,86912.0,0.1150796]
[1743096731361,0.0575404,86911.0,86909.0,0.1151623]
[1743096731564,0.1125,86910.0,86909.0,0.1151623]
[1743096731859,0.1150875,86906.0,86905.0,0.3608]
[1743096732064,0.1166075,86906.0,86905.0,0.3608]
[1743096732364,0.2291075,86906.0,86905.0,0.4758888]
[1743096733465,0.2321075,86906.0,86905.0,0.4758888]
[1743096735068,0.2351075,86906.0,86905.0,0.4758888]
[1743096735563,0.12002,86906.0,86905.0,0.48460932]
[1743096735759,0.2351075,86906.0,86905.0,0.53970932]
[1743096736361,0.2351075,86906.0,86905.0,0.48460932]
[1743096736558,0.2351075,86906.0,86905.0,0.12380932]
[1743096736757,0.2351075,86906.0,86905.0,0.1150888]
[1743096737068,0.2351075,86906.0,86904.0,0.057545]
[1743096737069,0.1150902,86905.0,86904.0,0.1726338]
[1743096737271,0.11665021,86905.0,86904.0,0.1726338]
[1743096737459,0.23325021,86905.0,86904.0,0.1726338]
[1743096738166,0.23625021,86905.0,86904.0,0.1726338]
[1743096738556,0.23625021,86905.0,86904.0,0.057545]
[1743096738759,0.23625021,86905.0,86903.0,0.3609417]
[1743096738760,0.1150902,86904.0,86903.0,0.0001417]
[1743096738970,0.1151047,86893.0,86887.0,8e-05]
[1743096739179,0.23018471,86893.0,86888.0,0.0575555]
[1743096739367,0.11511,86889.0,86888.0,0.2302166]
[1743096739560,0.11663,86889.0,86888.0,0.2302166]
[1743096739760,0.23383,86889.0,86888.0,0.2302166]
[1743096739961,0.23383,86889.0,86888.0,0.1151105]
[1743096740267,0.23383,86889.0,86888.0,0.057555]
[1743096740470,0.115114,86886.0,86885.0,8e-05]
[1743096740765,0.11667401,86886.0,86885.0,0.1151953]
[1743096740964,0.22827401,86886.0,86885.0,8e-05]
[1743096741164,0.23924199,86886.0,86885.0,8e-05]
[1743096741472,0.23924199,86886.0,86885.0,0.1151953]
[1743096742171,0.22827401,86886.0,86885.0,0.1151953]
[1743096742473,0.22827401,86886.0,86885.0,8e-05]
[1743096742669,0.22827401,86886.0,86885.0,0.1161953]
[1743096742870,0.22827401,86886.0,86885.0,0.1171953]
[1743096746376,0.11316001,86886.0,86885.0,0.1171953]
[1743096746562,0.11316001,86886.0,86885.0,0.5907953]
[1743096746769,0.226714,86886.0,86885.0,0.5907953]
[1743096746965,0.228314,86886.0,86885.0,0.5907953]
[1743096747170,0.286014,86886.0,86885.0,0.5907153]
[1743096747776,0.1709,86886.0,86885.0,0.5907153]
[1743096747977,0.1132,86886.0,86885.0,0.5907153]
[1743096748282,0.055,86886.0,86885.0,0.5907153]
[1743096748576,0.0566,86886.0,86885.0,0.5907153]
[1743096748776,0.116714,86886.0,86885.0,0.5907153]
[1743096749074,0.116714,86886.0,86885.0,0.4779153]
[1743096749464,0.284214,86886.0,86885.0,0.4779153]
[1743096749665,0.284214,86886.0,86885.0,0.5362153]
[1743096749875,0.284214,86886.0,86885.0,0.5947153]
[1743096750076,0.1114,86886.0,86885.0,0.5947153]
[1743096750370,0.226514,86886.0,86885.0,0.5947153]
[1743096751779,0.226514,86886.0,86885.0,0.5362153]
[1743096752373,0.226514,86886.0,86885.0,0.1754153]
[1743096752575,0.226514,86886.0,86885.0,0.2339153]
[1743096753578,0.1114,86886.0,86885.0,0.2339153]
[1743096753787,0.226514,86886.0,86885.0,0.2339153]
[1743096754470,0.1114,86886.0,86885.0,0.2339153]
[1743096754873,0.0571,86886.0,86885.0,0.2339153]
[1743096755479,0.172214,86886.0,86885.0,0.2339153]
[1743096755866,0.172214,86886.0,86885.0,0.1171153]
[1743096756071,0.227614,86886.0,86885.0,0.1171153]
[1743096756478,0.227614,86886.0,86885.0,0.1709153]
[1743096757578,0.227614,86886.0,86885.0,0.1171153]
[1743096757778,0.227614,86886.0,86885.0,0.002]
[1743096758082,0.227614,86886.0,86885.0,0.1171153]
[1743096759180,0.227614,86886.0,86885.0,0.002]
[1743096761385,0.227614,86886.0,86885.0,0.1171153]
[1743096761781,0.227614,86886.0,86885.0,0.002]
[1743096762176,0.227614,86886.0,86885.0,0.1171153]
[1743096763989,0.227614,86886.0,86885.0,0.1743153]
[1743096764488,0.28357999,86886.0,86885.0,0.1743153]
[1743096764989,0.28357999,86886.0,86885.0,0.002]
[1743096765288,0.1151206,86881.0,86880.0,0.11529411]
[1743096765483,0.2301206,86881.0,86880.0,0.11529411]
[1743096765684,0.2839206,86881.0,86880.0,0.00017261]
[1743096765883,0.3972806,86881.0,86880.0,0.00017261]
[1743096766085,0.3972806,86881.0,86880.0,0.11529461]
[1743096766481,0.3972806,86881.0,86880.0,0.11629461]
[1743096766885,0.3972806,86881.0,86880.0,0.17369461]
[1743096767085,0.3972806,86881.0,86880.0,0.23209461]
[1743096769081,0.2264206,86881.0,86880.0,0.23209461]
[1743096771689,0.1113,86881.0,86880.0,0.23209461]
[1743096771885,0.0016,86881.0,86880.0,0.34517461]
[1743096772084,0.05596599,86886.0,86885.0,0.1151153]
[1743096772288,0.00104001,86886.0,86885.0,0.4765153]
[1743096772493,0.32091282,86887.0,86886.0,0.115114]
[1743096772692,0.32195283,86887.0,86886.0,0.115714]
[1743096772894,0.20684013,86887.0,86886.0,0.229514]
[1743096773591,0.20684013,86887.0,86886.0,0.24051304]
[1743096774181,0.20684013,86887.0,86886.0,0.24151304]
[1743096776395,0.00104001,86887.0,86886.0,0.24151304]
[1743096778793,0.13745008,86889.0,86888.0,0.1151114]
[1743096779098,0.13857009,86889.0,86888.0,0.1157914]
[1743096779299,0.13857009,86889.0,86888.0,0.2302914]
[1743096780404,0.20580012,86900.0,86890.0,0.0575539]
[1743096780594,0.00085261,86897.0,86896.0,0.4759008]
[1743096780901,0.00017261,86897.0,86896.0,0.4765808]
[1743096781086,0.20580012,86902.0,86896.0,0.53143]
[1743096781294,0.20648012,86902.0,86901.0,0.4758941]
[1743096781593,0.20580012,86902.0,86901.0,0.5897741]
[1743096782298,0.20580012,86902.0,86901.0,0.7004741]
[1743096783895,0.20780012,86902.0,86901.0,0.7004741]
[1743096784096,0.20848012,86902.0,86901.0,0.7004741]
[1743096784299,0.21048012,86902.0,86901.0,0.7004741]
[1743096784594,0.20980012,86902.0,86901.0,0.7004741]
[1743096784801,0.004,86902.0,86901.0,0.7004741]
[1743096786201,0.10296964,86907.0,86901.0,0.7004741]
[1743096786202,0.10296964,86907.0,86906.0,0.1150875]
[1743096786391,0.0571,86916.0,86909.0,0.0575412]
[1743096786594,0.0571,86916.0,86915.0,0.4758756]
[1743096786795,0.0571,86916.0,86915.0,0.4764756]
[1743096787398,0.0565,86922.0,86921.0,0.1150677]
[1743096787697,0.11436,86922.0,86921.0,0.1157477]
[1743096787898,0.11436,86922.0,86921.0,0.2913477]
[1743096788198,0.2294263,86922.0,86921.0,0.2913477]
[1743096788389,0.11436,86922.0,86921.0,0.2913477]
[1743096788699,0.11436,86922.0,86921.0,0.2349477]
[1743096789000,0.11936,86922.0,86921.0,0.2349477]
[1743096789201,0.1186,86922.0,86921.0,0.2349477]
[1743096789400,0.11928,86922.0,86921.0,0.2349477]
[1743096789994,0.12428,86922.0,86921.0,0.2349477]
[1743096790301,0.1236,86922.0,86921.0,0.2349477]
[1743096790603,0.2386663,86922.0,86921.0,0.2349477]
[1743096790795,0.2506818,86922.0,86921.0,0.23755737]
[1743096790996,0.2506818,86922.0,86921.0,0.00068]
[1743096792102,0.115069,86920.0,86919.0,8e-05]
[1743096792306,0.115829,86920.0,86919.0,8e-05]
[1743096792499,0.590929,86920.0,86919.0,8e-05]
[1743096792799,0.1150769,86914.0,86913.0,0.00017261]
[1743096793000,0.1158369,86914.0,86913.0,0.00017261]
[1743096793190,0.2899369,86914.0,86913.0,0.00017261]
[1743096793797,0.1150809,86911.0,86910.0,8e-05]
[1743096794004,0.1150888,86905.0,86904.0,8e-05]
[1743096794306,0.1733139,86905.0,86904.0,0.1150902]
[1743096794507,0.2876139,86905.0,86904.0,0.1156902]
[1743096794800,0.2876139,86905.0,86904.0,0.0006]
[1743096795004,0.2876139,86905.0,86901.0,8e-05]
[1743096795005,0.1150928,86902.0,86901.0,8e-05]
[1743096795197,0.1157728,86902.0,86901.0,0.00064]
[1743096795396,0.2336728,86902.0,86901.0,0.00064]
[1743096795995,0.24471952,86902.0,86901.0,0.00064]
[1743096796294,0.24471952,86902.0,86901.0,0.1157341]
[1743096796498,0.24471952,86902.0,86901.0,0.00064]
[1743096796901,0.24671952,86902.0,86901.0,0.00064]